[Event "*** Titled Tuesday Blitz"]
[Site "Chess.com"]
[Date "2019.12.03"]
[Round "2"]
[White "Vugar_Manafov"]
[Black "LiamVrolijk"]
[Result "1/2-1/2"]
[WhiteElo "2536"]
[BlackElo "2749"]
[TimeControl "180+2"]
[EndTime "13:24:44 PST"]
[Termination "Game drawn - insufficient material"]

1. Nf3 {[%clk 0:03:00.2]} 1... d5 {[%clk 0:02:59.1]} 2. g3 {[%clk 0:02:59.4]}
2... Nf6 {[%clk 0:02:58.8]} 3. Bg2 {[%clk 0:02:59.4]} 3... e6 {[%clk 0:03:00.4]}
4. O-O {[%clk 0:02:59.7]} 4... Be7 {[%clk 0:03:01.8]} 5. d3 {[%clk 0:03:00.7]}
5... c5 {[%clk 0:03:00.3]} 6. Nc3 {[%clk 0:03:01.7]} 6... O-O {[%clk 0:03:00.8]}
7. e4 {[%clk 0:03:02]} 7... Nc6 {[%clk 0:02:59.5]} 8. h3 {[%clk 0:03:01.5]} 8...
b6 {[%clk 0:02:59.2]} 9. Re1 {[%clk 0:03:00.2]} 9... Bb7 {[%clk 0:02:59.8]} 10.
Nd2 {[%clk 0:02:58]} 10... Nd4 {[%clk 0:02:47]} 11. f4 {[%clk 0:02:53.8]} 11...
b5 {[%clk 0:02:45]} 12. Ne2 {[%clk 0:02:14.8]} 12... dxe4 {[%clk 0:02:15.8]} 13.
Nxe4 {[%clk 0:02:12.2]} 13... Qb6 {[%clk 0:01:51.1]} 14. c3 {[%clk 0:01:57.3]}
14... Nf5 {[%clk 0:01:43.5]} 15. Qc2 {[%clk 0:01:47.5]} 15... Rad8 {[%clk
0:01:31.6]} 16. Kh2 {[%clk 0:01:45.5]} 16... Nd5 {[%clk 0:01:26.6]} 17. Ng1
{[%clk 0:01:42.6]} 17... Qc7 {[%clk 0:01:11]} 18. Nf3 {[%clk 0:01:38.8]} 18...
c4 {[%clk 0:01:07.8]} 19. d4 {[%clk 0:01:37.2]} 19... Nf6 {[%clk 0:01:05.2]} 20.
Ne5 {[%clk 0:01:32]} 20... Nxe4 {[%clk 0:01:05.2]} 21. Bxe4 {[%clk 0:01:33.8]}
21... Bxe4 {[%clk 0:01:07.1]} 22. Qxe4 {[%clk 0:01:35.3]} 22... Bd6 {[%clk
0:01:06.8]} 23. Bd2 {[%clk 0:01:33.3]} 23... Bxe5 {[%clk 0:01:06.8]} 24. Qxe5
{[%clk 0:01:32.3]} 24... Qb7 {[%clk 0:01:06.6]} 25. a3 {[%clk 0:01:19.6]} 25...
Qf3 {[%clk 0:01:05.2]} 26. Rg1 {[%clk 0:01:13.1]} 26... Rd5 {[%clk 0:01:05.4]}
27. Qe1 {[%clk 0:01:11.6]} 27... Qd3 {[%clk 0:01:02.2]} 28. g4 {[%clk
0:01:05.9]} 28... Nd6 {[%clk 0:01:00.2]} 29. Rg3 {[%clk 0:01:05.9]} 29... Qc2
{[%clk 0:01:00.7]} 30. Qc1 {[%clk 0:01:06.4]} 30... Qb3 {[%clk 0:00:56.1]} 31.
Re3 {[%clk 0:01:05.3]} 31... Qa4 {[%clk 0:00:49.3]} 32. Qd1 {[%clk 0:01:03.7]}
32... Qxd1 {[%clk 0:00:47.3]} 33. Rxd1 {[%clk 0:01:04.3]} 33... Rb8 {[%clk
0:00:44.8]} 34. Rde1 {[%clk 0:01:03.6]} 34... h5 {[%clk 0:00:34]} 35. Re5 {[%clk
0:01:03.4]} 35... hxg4 {[%clk 0:00:35.6]} 36. hxg4 {[%clk 0:01:03.8]} 36... Kf8
{[%clk 0:00:32.2]} 37. Kg3 {[%clk 0:00:59.5]} 37... Rxe5 {[%clk 0:00:30.7]} 38.
Rxe5 {[%clk 0:01:01.4]} 38... Ke7 {[%clk 0:00:31.1]} 39. f5 {[%clk 0:01:01.8]}
39... Kd7 {[%clk 0:00:28.2]} 40. fxe6+ {[%clk 0:01:02.3]} 40... fxe6 {[%clk
0:00:30.1]} 41. Bf4 {[%clk 0:00:59.5]} 41... Rf8 {[%clk 0:00:28]} 42. d5 {[%clk
0:00:58.5]} 42... Rf6 {[%clk 0:00:24.3]} 43. dxe6+ {[%clk 0:00:30.4]} 43... Rxe6
{[%clk 0:00:26.2]} 44. Rxe6 {[%clk 0:00:32.2]} 44... Kxe6 {[%clk 0:00:27.9]} 45.
Bxd6 {[%clk 0:00:33.5]} 45... Kxd6 {[%clk 0:00:29.8]} 46. Kf4 {[%clk 0:00:33.8]}
46... Ke6 {[%clk 0:00:29.8]} 47. Kg5 {[%clk 0:00:25.5]} 47... Ke5 {[%clk
0:00:28.9]} 48. Kg6 {[%clk 0:00:25.3]} 48... Kf4 {[%clk 0:00:30]} 49. Kxg7
{[%clk 0:00:26.9]} 49... Kxg4 {[%clk 0:00:31.2]} 50. Kf6 {[%clk 0:00:27.3]}
50... Kf4 {[%clk 0:00:32.3]} 51. Ke6 {[%clk 0:00:27.5]} 51... Ke4 {[%clk
0:00:33]} 52. Kd6 {[%clk 0:00:27.6]} 52... Kd3 {[%clk 0:00:33.2]} 53. Kc5 {[%clk
0:00:27.8]} 53... a6 {[%clk 0:00:34.7]} 54. Kb6 {[%clk 0:00:18.9]} 54... Kc2
{[%clk 0:00:34.1]} 55. Kxa6 {[%clk 0:00:20.4]} 55... Kxb2 {[%clk 0:00:35.5]} 56.
Kxb5 {[%clk 0:00:20.7]} 56... Kxc3 {[%clk 0:00:37]} 57. a4 {[%clk 0:00:22.2]}
57... Kd4 {[%clk 0:00:28.2]} 58. a5 {[%clk 0:00:23.8]} 58... c3 {[%clk
0:00:29.7]} 59. a6 {[%clk 0:00:25.7]} 59... c2 {[%clk 0:00:31.2]} 60. a7 {[%clk
0:00:27.6]} 60... c1=Q {[%clk 0:00:31.9]} 61. a8=Q {[%clk 0:00:27.4]} 61... Qb2+
{[%clk 0:00:19.3]} 62. Ka6 {[%clk 0:00:26.1]} 62... Qa3+ {[%clk 0:00:20.3]} 63.
Kb7 {[%clk 0:00:27]} 63... Qb4+ {[%clk 0:00:21.8]} 64. Ka7 {[%clk 0:00:27]}
64... Qa5+ {[%clk 0:00:22.3]} 65. Kb7 {[%clk 0:00:25.8]} 65... Qb5+ {[%clk
0:00:22.8]} 66. Ka7 {[%clk 0:00:24.4]} 66... Qc5+ {[%clk 0:00:24]} 67. Kb7
{[%clk 0:00:25.3]} 67... Qb5+ {[%clk 0:00:25.3]} 68. Ka7 {[%clk 0:00:25.6]}
68... Qd7+ {[%clk 0:00:26.3]} 69. Qb7 {[%clk 0:00:26.4]} 69... Qxb7+ {[%clk
0:00:27.6]} 70. Kxb7 {[%clk 0:00:27.3]} 1/2-1/2

[Event "*** Titled Tuesday Blitz"]
[Site "Chess.com"]
[Date "2019.12.03"]
[Round "2"]
[White "GrigorGrigorov"]
[Black "johnathan113"]
[Result "1/2-1/2"]
[WhiteElo "2823"]
[BlackElo "2588"]
[TimeControl "180+2"]
[EndTime "13:24:45 PST"]
[Termination "Game drawn - insufficient material"]

1. d4 {[%clk 0:03:01.9]} 1... Nf6 {[%clk 0:03:00.6]} 2. c4 {[%clk 0:03:02.5]}
2... g6 {[%clk 0:03:02]} 3. g3 {[%clk 0:03:03.1]} 3... c5 {[%clk 0:03:03.1]} 4.
dxc5 {[%clk 0:03:01.4]} 4... Bg7 {[%clk 0:03:03.3]} 5. Nc3 {[%clk 0:02:58]} 5...
Qa5 {[%clk 0:03:02.8]} 6. Bd2 {[%clk 0:02:45.1]} 6... Qxc5 {[%clk 0:03:03]} 7.
Bg2 {[%clk 0:02:44.5]} 7... O-O {[%clk 0:03:03.3]} 8. Rc1 {[%clk 0:02:43.6]}
8... Nc6 {[%clk 0:02:57.2]} 9. Nd5 {[%clk 0:02:32.2]} 9... Ng4 {[%clk
0:02:42.4]} 10. Nh3 {[%clk 0:02:32.9]} 10... Bxb2 {[%clk 0:02:34.4]} 11. Rb1
{[%clk 0:02:26.9]} 11... Bg7 {[%clk 0:02:35]} 12. Qc1 {[%clk 0:02:25.7]} 12...
e6 {[%clk 0:02:24.2]} 13. Rb5 {[%clk 0:02:04.9]} 13... Qd6 {[%clk 0:02:14.6]}
14. c5 {[%clk 0:02:00.7]} 14... Qb8 {[%clk 0:02:04.6]} 15. Bf4 {[%clk
0:01:56.7]} 15... Be5 {[%clk 0:01:59.1]} 16. Ne3 {[%clk 0:01:29.3]} 16... Bxf4
{[%clk 0:01:20.2]} 17. Nxf4 {[%clk 0:01:30]} 17... Nxe3 {[%clk 0:01:21.2]} 18.
Qxe3 {[%clk 0:01:31.1]} 18... d5 {[%clk 0:01:23.1]} 19. cxd6 {[%clk 0:01:16.7]}
19... Qxd6 {[%clk 0:01:22.9]} 20. O-O {[%clk 0:01:18]} 20... Nd4 {[%clk
0:01:03.5]} 21. Rbb1 {[%clk 0:00:58.2]} 21... e5 {[%clk 0:01:03.7]} 22. Nd5
{[%clk 0:00:54.9]} 22... Rb8 {[%clk 0:01:01.1]} 23. f4 {[%clk 0:00:52.8]} 23...
Re8 {[%clk 0:00:37.2]} 24. fxe5 {[%clk 0:00:37.4]} 24... Qxe5 {[%clk 0:00:39.1]}
25. Nf6+ {[%clk 0:00:37.2]} 25... Kh8 {[%clk 0:00:40.6]} 26. Qxe5 {[%clk
0:00:24.6]} 26... Rxe5 {[%clk 0:00:41.6]} 27. e4 {[%clk 0:00:20.5]} 27... Be6
{[%clk 0:00:37.8]} 28. Rb2 {[%clk 0:00:20.8]} 28... Kg7 {[%clk 0:00:35.6]} 29.
Rbf2 {[%clk 0:00:19.4]} 29... Rc8 {[%clk 0:00:31.3]} 30. Nd5 {[%clk 0:00:20.5]}
30... b5 {[%clk 0:00:23.4]} 31. Nf4 {[%clk 0:00:21.5]} 31... Rc7 {[%clk
0:00:23.5]} 32. Nd3 {[%clk 0:00:20.4]} 32... Rg5 {[%clk 0:00:21.3]} 33. Nf4
{[%clk 0:00:21]} 33... Bc4 {[%clk 0:00:21.6]} 34. Rd1 {[%clk 0:00:21.8]} 34...
Ne6 {[%clk 0:00:18.9]} 35. Nd5 {[%clk 0:00:22]} 35... Rd7 {[%clk 0:00:19.3]} 36.
Re1 {[%clk 0:00:20.8]} 36... Re5 {[%clk 0:00:19.7]} 37. Rc1 {[%clk 0:00:21.1]}
37... Nd4 {[%clk 0:00:19.1]} 38. Kh1 {[%clk 0:00:18.9]} 38... Ne6 {[%clk
0:00:18.1]} 39. h4 {[%clk 0:00:18.6]} 39... Bxd5 {[%clk 0:00:19]} 40. exd5
{[%clk 0:00:19.5]} 40... Nc7 {[%clk 0:00:20.5]} 41. Rc5 {[%clk 0:00:18.7]} 41...
Nxd5 {[%clk 0:00:18.9]} 42. Rxb5 {[%clk 0:00:18.8]} 42... Re1+ {[%clk
0:00:18.5]} 43. Kh2 {[%clk 0:00:19.5]} 43... Ne3 {[%clk 0:00:19.1]} 44. Bf3
{[%clk 0:00:19.6]} 44... Nf1+ {[%clk 0:00:15.6]} 45. Kg2 {[%clk 0:00:19.5]}
45... Ne3+ {[%clk 0:00:17.2]} 46. Kh2 {[%clk 0:00:20.9]} 46... Rc7 {[%clk
0:00:17.9]} 47. Rbb2 {[%clk 0:00:17.1]} 47... Rcc1 {[%clk 0:00:18.1]} 48. Rbe2
{[%clk 0:00:16.6]} 48... Rxe2 {[%clk 0:00:13.2]} 49. Rxe2 {[%clk 0:00:17.2]}
49... Rc2 {[%clk 0:00:14.4]} 50. Rxc2 {[%clk 0:00:15.7]} 50... Nxc2 {[%clk
0:00:15.2]} 51. Be4 {[%clk 0:00:14.8]} 51... Nb4 {[%clk 0:00:14.2]} 52. a3
{[%clk 0:00:14.4]} 52... Na2 {[%clk 0:00:15.2]} 53. g4 {[%clk 0:00:15]} 53...
Nc3 {[%clk 0:00:17.1]} 54. Bf3 {[%clk 0:00:13.6]} 54... a5 {[%clk 0:00:16.9]}
55. Kg3 {[%clk 0:00:13.7]} 55... Nb1 {[%clk 0:00:16.4]} 56. a4 {[%clk
0:00:14.5]} 56... Nc3 {[%clk 0:00:17.9]} 57. Bc6 {[%clk 0:00:16]} 57... h6
{[%clk 0:00:19.3]} 58. Kf4 {[%clk 0:00:15]} 58... Kf6 {[%clk 0:00:20.5]} 59. g5+
{[%clk 0:00:15.9]} 59... hxg5+ {[%clk 0:00:22.4]} 60. hxg5+ {[%clk 0:00:17.3]}
60... Ke6 {[%clk 0:00:24.3]} 61. Ke3 {[%clk 0:00:15.4]} 61... Kd6 {[%clk
0:00:16.9]} 62. Be8 {[%clk 0:00:15.5]} 62... Ke7 {[%clk 0:00:17.3]} 63. Bc6
{[%clk 0:00:16.3]} 63... Nd1+ {[%clk 0:00:13]} 64. Kd4 {[%clk 0:00:17]} 64...
Kd6 {[%clk 0:00:14.1]} 65. Bd5 {[%clk 0:00:16.7]} 65... Ke7 {[%clk 0:00:08.7]}
66. Kc5 {[%clk 0:00:17.8]} 66... Nc3 {[%clk 0:00:08.2]} 67. Bc6 {[%clk
0:00:17.1]} 67... Ke6 {[%clk 0:00:08.8]} 68. Kb6 {[%clk 0:00:17.4]} 68... Kf5
{[%clk 0:00:10.2]} 69. Kxa5 {[%clk 0:00:17.4]} 69... Kxg5 {[%clk 0:00:11.4]} 70.
Kb4 {[%clk 0:00:18.8]} 70... Nxa4 {[%clk 0:00:12.6]} 71. Bxa4 {[%clk 0:00:19.5]}
71... Kf4 {[%clk 0:00:13.5]} 72. Be8 {[%clk 0:00:19.2]} 72... g5 {[%clk
0:00:10.3]} 73. Bxf7 {[%clk 0:00:19.9]} 73... g4 {[%clk 0:00:12.2]} 74. Bd5
{[%clk 0:00:21.4]} 74... g3 {[%clk 0:00:14.1]} 75. Bc6 {[%clk 0:00:22.7]} 75...
g2 {[%clk 0:00:16]} 76. Bxg2 {[%clk 0:00:23.6]} 1/2-1/2

[Event "*** Titled Tuesday Blitz"]
[Site "Chess.com"]
[Date "2019.12.03"]
[Round "2"]
[White "gusanchutik"]
[Black "Supernotar"]
[Result "1/2-1/2"]
[WhiteElo "2965"]
[BlackElo "2630"]
[TimeControl "180+2"]
[EndTime "13:25:33 PST"]
[Termination "Game drawn by repetition"]

1. d4 {[%clk 0:03:01.7]} 1... d5 {[%clk 0:02:59.5]} 2. c4 {[%clk 0:03:03]} 2...
dxc4 {[%clk 0:02:55.8]} 3. Nf3 {[%clk 0:03:03.6]} 3... Nf6 {[%clk 0:02:56.3]} 4.
e3 {[%clk 0:03:05.2]} 4... e6 {[%clk 0:02:57]} 5. Bxc4 {[%clk 0:03:06.5]} 5...
a6 {[%clk 0:02:57.6]} 6. O-O {[%clk 0:03:07.7]} 6... b5 {[%clk 0:02:56.8]} 7.
Be2 {[%clk 0:03:08.7]} 7... Bb7 {[%clk 0:02:57.5]} 8. Nc3 {[%clk 0:03:09.1]}
8... Nbd7 {[%clk 0:02:58.3]} 9. b3 {[%clk 0:03:09.3]} 9... c5 {[%clk 0:02:59.2]}
10. Bb2 {[%clk 0:03:10.4]} 10... Be7 {[%clk 0:02:56.9]} 11. Rc1 {[%clk
0:03:12.2]} 11... O-O {[%clk 0:02:56.7]} 12. Qc2 {[%clk 0:03:13.7]} 12... Rc8
{[%clk 0:02:56.9]} 13. Qb1 {[%clk 0:03:14.5]} 13... Qb6 {[%clk 0:02:56.5]} 14.
Rfd1 {[%clk 0:03:16.2]} 14... Rfd8 {[%clk 0:02:57.1]} 15. dxc5 {[%clk
0:03:04.6]} 15... Bxc5 {[%clk 0:02:56.7]} 16. h3 {[%clk 0:02:40.9]} 16... Bxe3
{[%clk 0:02:30]} 17. fxe3 {[%clk 0:02:34.4]} 17... b4 {[%clk 0:01:49.9]} 18. Kh1
{[%clk 0:02:17.3]} 18... bxc3 {[%clk 0:01:45.7]} 19. Rxc3 {[%clk 0:02:19.2]}
19... Rxc3 {[%clk 0:01:39.4]} 20. Bxc3 {[%clk 0:02:21.1]} 20... Ne4 {[%clk
0:01:09.8]} 21. Be1 {[%clk 0:02:21.5]} 21... Qxe3 {[%clk 0:00:55.4]} 22. Qd3
{[%clk 0:02:22.2]} 22... Qxd3 {[%clk 0:00:41.5]} 23. Rxd3 {[%clk 0:02:24.1]}
23... Bd5 {[%clk 0:00:40.8]} 24. Rd1 {[%clk 0:02:18.3]} 24... Ra8 {[%clk
0:00:38.6]} 25. Kg1 {[%clk 0:02:12.5]} 25... f6 {[%clk 0:00:37.1]} 26. Nd4
{[%clk 0:02:11.8]} 26... Kf7 {[%clk 0:00:36.3]} 27. Nf5 {[%clk 0:02:07.8]} 27...
Ne5 {[%clk 0:00:32.7]} 28. Ne3 {[%clk 0:02:08.5]} 28... Bb7 {[%clk 0:00:30]} 29.
Nc4 {[%clk 0:02:03.4]} 29... Bd5 {[%clk 0:00:16.5]} 30. Nb6 {[%clk 0:02:03.5]}
30... Rd8 {[%clk 0:00:13.8]} 31. Nxd5 {[%clk 0:02:04.6]} 31... exd5 {[%clk
0:00:13.6]} 32. Bxa6 {[%clk 0:02:02.4]} 32... Ke6 {[%clk 0:00:11.2]} 33. Bf1
{[%clk 0:01:53.7]} 33... f5 {[%clk 0:00:12.2]} 34. a4 {[%clk 0:01:53.3]} 34...
d4 {[%clk 0:00:12.8]} 35. Bd2 {[%clk 0:01:39.8]} 35... d3 {[%clk 0:00:11.7]} 36.
Bf4 {[%clk 0:01:40.9]} 36... d2 {[%clk 0:00:09.3]} 37. h4 {[%clk 0:01:16.7]}
37... Nd3 {[%clk 0:00:10.1]} 38. Bxd3 {[%clk 0:00:58.8]} 38... Rxd3 {[%clk
0:00:12]} 39. b4 {[%clk 0:01:00.5]} 39... Rd4 {[%clk 0:00:11.8]} 40. a5 {[%clk
0:00:48]} 40... Nc3 {[%clk 0:00:12.4]} 41. Rxd2 {[%clk 0:00:37.6]} 41... Rxf4
{[%clk 0:00:13.5]} 42. Rc2 {[%clk 0:00:38.7]} 42... Nb5 {[%clk 0:00:12.9]} 43.
Rc6+ {[%clk 0:00:37.5]} 43... Kd7 {[%clk 0:00:12.8]} 44. Rb6 {[%clk 0:00:38.4]}
44... Rxb4 {[%clk 0:00:13.2]} 45. a6 {[%clk 0:00:39.8]} 45... Ra4 {[%clk
0:00:12.3]} 46. Rxb5 {[%clk 0:00:40.6]} 46... Rxa6 {[%clk 0:00:13.2]} 47. Rb7+
{[%clk 0:00:41.9]} 47... Ke6 {[%clk 0:00:12.9]} 48. Rxg7 {[%clk 0:00:43.8]}
48... Ke5 {[%clk 0:00:12.6]} 49. Rxh7 {[%clk 0:00:43.2]} 49... Kf4 {[%clk
0:00:14.1]} 50. Rg7 {[%clk 0:00:43.3]} 50... Rh6 {[%clk 0:00:13.7]} 51. Kf2
{[%clk 0:00:43.5]} 51... Ke5 {[%clk 0:00:14.3]} 52. g3 {[%clk 0:00:43.4]} 52...
Ra6 {[%clk 0:00:11.6]} 53. Re7+ {[%clk 0:00:43.5]} 53... Kf6 {[%clk 0:00:12.6]}
54. Re3 {[%clk 0:00:44.7]} 54... Ra4 {[%clk 0:00:13.6]} 55. Kf3 {[%clk
0:00:46.3]} 55... Kg6 {[%clk 0:00:13.9]} 56. Rd3 {[%clk 0:00:47.5]} 56... Ra1
{[%clk 0:00:13.5]} 57. Rd6+ {[%clk 0:00:47.4]} 57... Kg7 {[%clk 0:00:12.2]} 58.
Kf4 {[%clk 0:00:44.8]} 58... Rf1+ {[%clk 0:00:12.9]} 59. Kg5 {[%clk 0:00:44.2]}
59... Rf3 {[%clk 0:00:13.8]} 60. Rg6+ {[%clk 0:00:45.3]} 60... Kh7 {[%clk
0:00:14]} 61. Kh5 {[%clk 0:00:38.1]} 61... Re3 {[%clk 0:00:12.7]} 62. Rg5 {[%clk
0:00:33]} 62... Rf3 {[%clk 0:00:14]} 63. Rg6 {[%clk 0:00:30.5]} 63... Re3 {[%clk
0:00:15.1]} 64. Rf6 {[%clk 0:00:20.9]} 64... Rxg3 {[%clk 0:00:15.6]} 65. Rxf5
{[%clk 0:00:22.3]} 65... Rg7 {[%clk 0:00:16.6]} 66. Rf6 {[%clk 0:00:23.3]} 66...
Rc7 {[%clk 0:00:16.7]} 67. Rf5 {[%clk 0:00:23.7]} 67... Kg7 {[%clk 0:00:17.1]}
68. Kg5 {[%clk 0:00:24.9]} 68... Rc2 {[%clk 0:00:17.2]} 69. Ra5 {[%clk
0:00:24.6]} 69... Rg2+ {[%clk 0:00:17.5]} 70. Kh5 {[%clk 0:00:26.4]} 70... Rc2
{[%clk 0:00:17.7]} 71. Ra7+ {[%clk 0:00:27.2]} 71... Kg8 {[%clk 0:00:19.1]} 72.
Ra6 {[%clk 0:00:28.7]} 72... Kg7 {[%clk 0:00:18.7]} 73. Rg6+ {[%clk 0:00:30.3]}
73... Kh7 {[%clk 0:00:19.5]} 74. Rg5 {[%clk 0:00:32.2]} 74... Rc7 {[%clk
0:00:19.5]} 75. Re5 {[%clk 0:00:33.1]} 75... Rd7 {[%clk 0:00:20.3]} 76. Kg5
{[%clk 0:00:34.4]} 76... Rg7+ {[%clk 0:00:21.2]} 77. Kf4 {[%clk 0:00:35.2]}
77... Kh6 {[%clk 0:00:21.5]} 78. Rf5 {[%clk 0:00:34.9]} 78... Rg6 {[%clk
0:00:22.1]} 79. Rf8 {[%clk 0:00:32.5]} 79... Kg7 {[%clk 0:00:20.2]} 80. Ra8
{[%clk 0:00:33.2]} 80... Kh6 {[%clk 0:00:20.5]} 81. Kf5 {[%clk 0:00:33.3]} 81...
Rg1 {[%clk 0:00:14.7]} 82. h5 {[%clk 0:00:33.2]} 82... Rf1+ {[%clk 0:00:13.5]}
83. Kg4 {[%clk 0:00:34.8]} 83... Rg1+ {[%clk 0:00:14.3]} 84. Kh4 {[%clk
0:00:36.4]} 84... Rh1+ {[%clk 0:00:15.4]} 85. Kg4 {[%clk 0:00:38.1]} 85... Rg1+
{[%clk 0:00:16.7]} 86. Kf5 {[%clk 0:00:39.9]} 86... Rf1+ {[%clk 0:00:17.3]} 87.
Ke5 {[%clk 0:00:39.7]} 87... Kxh5 {[%clk 0:00:17.5]} 88. Rg8 {[%clk 0:00:41.2]}
88... Kh4 {[%clk 0:00:17.9]} 89. Ke4 {[%clk 0:00:42.6]} 89... Kh5 {[%clk
0:00:18.9]} 90. Ke3 {[%clk 0:00:43.7]} 90... Kh4 {[%clk 0:00:19.8]} 91. Ke2
{[%clk 0:00:45]} 91... Rf7 {[%clk 0:00:20.5]} 92. Ke3 {[%clk 0:00:46.4]} 92...
Kh5 {[%clk 0:00:21.5]} 93. Ke4 {[%clk 0:00:47.8]} 93... Rf1 {[%clk 0:00:22]} 94.
Rg2 {[%clk 0:00:48.9]} 94... Kh4 {[%clk 0:00:22.7]} 95. Rg8 {[%clk 0:00:49.9]}
95... Kh5 {[%clk 0:00:23.4]} 1/2-1/2